[Event "Titled Tuesday Blitz May 17 Early 2022"]
[White "Matinian, Nikita"]
[Black "Vasquez Schroeder, Rodrigo"]
[WhiteFideId "24129100"]
[BlackFideId "3400042"]
[WhiteElo "2422"]
[BlackElo "2567"]
[Result "0-1"]
[Round "11"]
[TimeControl "180+1"]
[Date "2022.05.17"]
[WhiteClock "0:00:01"]
[BlackClock "0:00:49"]

1. e4 {[%clk 0:03:00]}  c5 {[%clk 0:03:00]} 2. Nf3 {[%clk 0:03:01]}  d6 {[%clk 0:03:00]} 3. d4 {[%clk 0:03:01]}  cxd4 {[%clk 0:03:01]} 4. Nxd4 {[%clk 0:03:02]}  Nf6 {[%clk 0:03:01]} 5. Nc3 {[%clk 0:03:03]}  a6 {[%clk 0:03:02]} 6. Rg1 {[%clk 0:02:58]}  h6 {[%clk 0:02:59]} 7. g4 {[%clk 0:02:58]}  g5 {[%clk 0:02:59]} 8. b3 {[%clk 0:02:56]}  e6 {[%clk 0:02:56]} 9. Bb2 {[%clk 0:02:57]}  Be7 {[%clk 0:02:55]} 10. Qe2 {[%clk 0:02:55]}  Nbd7 {[%clk 0:02:55]} 11. O-O-O {[%clk 0:02:55]}  Ne5 {[%clk 0:02:55]} 12. h3 {[%clk 0:02:53]}  Nfd7 {[%clk 0:02:55]} 13. Bg2 {[%clk 0:02:51]}  b5 {[%clk 0:02:54]} 14. Kb1 {[%clk 0:02:51]}  Bb7 {[%clk 0:02:54]} 15. Rgf1 {[%clk 0:02:52]}  Qb6 {[%clk 0:02:53]} 16. f4 {[%clk 0:02:51]}  gxf4 {[%clk 0:02:53]} 17. Rxf4 {[%clk 0:02:52]}  O-O-O {[%clk 0:02:53]} 18. Qf1 {[%clk 0:02:23]}  Rh7 {[%clk 0:02:47]} 19. a4 {[%clk 0:02:17]}  b4 {[%clk 0:02:39]} 20. Nce2 {[%clk 0:02:16]}  Bg5 {[%clk 0:02:34]} 21. h4 {[%clk 0:01:47]}  Bxf4 {[%clk 0:02:28]} 22. Qxf4 {[%clk 0:01:48]}  Rg8 {[%clk 0:02:26]} 23. Bh3 {[%clk 0:01:44]}  Rhg7 {[%clk 0:02:18]} 24. Nf3 {[%clk 0:00:54]}  Qf2 {[%clk 0:02:12]} 25. Nxe5 {[%clk 0:00:52]}  Qxe2 {[%clk 0:01:58]} 26. Nxf7 {[%clk 0:00:25]}  Qxd1+ {[%clk 0:01:55]} 27. Ka2 {[%clk 0:00:25]}  e5 {[%clk 0:01:43]} 28. Qf5 {[%clk 0:00:21]}  Kc7 {[%clk 0:01:19]} 29. Nxh6 {[%clk 0:00:15]}  Rf8 {[%clk 0:01:16]} 30. Qe6 {[%clk 0:00:16]}  Qxc2 {[%clk 0:01:10]} 31. Nf5 {[%clk 0:00:13]}  Bxe4 {[%clk 0:01:01]} 32. Qxd6+ {[%clk 0:00:13]}  Kd8 {[%clk 0:01:00]} 33. Qxb4 {[%clk 0:00:11]}  Rxf5 {[%clk 0:00:57]} 34. gxf5 {[%clk 0:00:10]}  Rg1 {[%clk 0:00:55]} 35. Ka3 {[%clk 0:00:04]}  Rb1 {[%clk 0:00:53]} 36. Qa5+ {[%clk 0:00:04]}  Ke8 {[%clk 0:00:51]} 37. Qc3 {[%clk 0:00:03]}  Qxc3 {[%clk 0:00:49]} 38. Bxc3 {[%clk 0:00:04]}  Nc5 {[%clk 0:00:48]} 39. Bb2 {[%clk 0:00:03]}  Nd3 {[%clk 0:00:49]} 40. Bc3 {[%clk 0:00:01]}  Bd5 {[%clk 0:00:49]} 0-1


[Site "https://www.chess.com"]

[Event "Titled Tuesday Blitz May 17 Early 2022"]
[White "Oganian, Miran"]
[Black "Agasarov, Benik"]
[WhiteFideId "4122488"]
[BlackFideId "13314823"]
[WhiteElo "2357"]
[BlackElo "2611"]
[Result "0-1"]
[Round "11"]
[TimeControl "180+1"]
[Date "2022.05.17"]
[WhiteClock "0:01:32"]
[BlackClock "0:00:41"]

1. e4 {[%clk 0:02:59]}  c5 {[%clk 0:02:58]} 2. Nf3 {[%clk 0:02:59]}  e6 {[%clk 0:02:54]} 3. c3 {[%clk 0:02:59]}  Nf6 {[%clk 0:02:54]} 4. e5 {[%clk 0:03:00]}  Nd5 {[%clk 0:02:53]} 5. d4 {[%clk 0:03:01]}  cxd4 {[%clk 0:02:53]} 6. cxd4 {[%clk 0:03:02]}  d6 {[%clk 0:02:54]} 7. Bc4 {[%clk 0:03:02]}  Be7 {[%clk 0:02:50]} 8. O-O {[%clk 0:03:02]}  Nc6 {[%clk 0:02:47]} 9. Bd2 {[%clk 0:03:02]}  O-O {[%clk 0:02:46]} 10. Nc3 {[%clk 0:03:02]}  Nxc3 {[%clk 0:02:43]} 11. Bxc3 {[%clk 0:03:03]}  dxe5 {[%clk 0:02:41]} 12. dxe5 {[%clk 0:03:02]}  Qxd1 {[%clk 0:02:40]} 13. Rfxd1 {[%clk 0:03:03]}  b6 {[%clk 0:02:39]} 14. Bb5 {[%clk 0:03:03]}  Nb8 {[%clk 0:02:34]} 15. Rac1 {[%clk 0:02:39]}  Bb7 {[%clk 0:02:34]} 16. Bd4 {[%clk 0:02:35]}  Rd8 {[%clk 0:02:26]} 17. Rc7 {[%clk 0:02:20]}  Bxf3 {[%clk 0:02:13]} 18. gxf3 {[%clk 0:02:21]}  Bc5 {[%clk 0:02:11]} 19. Rd3 {[%clk 0:02:18]}  Na6 {[%clk 0:01:48]} 20. Bxc5 {[%clk 0:02:07]}  Nxc7 {[%clk 0:01:42]} 21. Be7 {[%clk 0:01:56]}  Rxd3 {[%clk 0:01:33]} 22. Bxd3 {[%clk 0:01:56]}  Nd5 {[%clk 0:01:33]} 23. Bd6 {[%clk 0:01:54]}  Rc8 {[%clk 0:01:29]} 24. Be4 {[%clk 0:01:49]}  Nf4 {[%clk 0:01:28]} 25. h4 {[%clk 0:01:48]}  h5 {[%clk 0:01:19]} 26. Kh2 {[%clk 0:01:47]}  Rc1 {[%clk 0:01:16]} 27. Kg3 {[%clk 0:01:47]}  Ne2+ {[%clk 0:01:09]} 28. Kh2 {[%clk 0:01:47]}  Ra1 {[%clk 0:01:00]} 29. a3 {[%clk 0:01:44]}  Ra2 {[%clk 0:00:57]} 30. b4 {[%clk 0:01:44]}  Nc3 {[%clk 0:00:53]} 31. Bc6 {[%clk 0:01:42]}  Rxf2+ {[%clk 0:00:52]} 32. Kg3 {[%clk 0:01:42]}  Ra2 {[%clk 0:00:52]} 33. b5 {[%clk 0:01:42]}  Ne2+ {[%clk 0:00:51]} 34. Kh3 {[%clk 0:01:40]}  Nd4 {[%clk 0:00:48]} 35. Be8 {[%clk 0:01:39]}  Nxf3 {[%clk 0:00:47]} 36. Kg3 {[%clk 0:01:36]}  Nd4 {[%clk 0:00:47]} 37. Kf4 {[%clk 0:01:36]}  Rb2 {[%clk 0:00:45]} 38. Bb4 {[%clk 0:01:35]}  Nc2 {[%clk 0:00:44]} 39. Bd6 {[%clk 0:01:35]}  Rb3 {[%clk 0:00:43]} 40. Kg5 {[%clk 0:01:31]}  Nxa3 {[%clk 0:00:43]} 41. Kxh5 {[%clk 0:01:31]}  Nxb5 {[%clk 0:00:42]} 42. Be7 {[%clk 0:01:31]}  Nd4 {[%clk 0:00:41]} 43. Kg5 {[%clk 0:01:31]}  Nf3+ {[%clk 0:00:41]} 44. Kg4 {[%clk 0:01:31]}  Nxe5+ {[%clk 0:00:41]} 45. Kf4 {[%clk 0:01:32]}  Ng6+ {[%clk 0:00:41]} 46. Kg5 {[%clk 0:01:32]} 0-1


[Site "https://www.chess.com"]

[Event "Titled Tuesday Blitz May 17 Early 2022"]
[White "Oparin, Grigoriy"]
[Black "Fiorito, Fabian"]
[WhiteFideId "24125890"]
[BlackFideId "100200"]
[WhiteElo "2665"]
[BlackElo "2395"]
[Result "1-0"]
[Round "11"]
[TimeControl "180+1"]
[Date "2022.05.17"]
[WhiteClock "0:01:55"]
[BlackClock "0:01:33"]

1. e4 {[%clk 0:03:00]}  c6 {[%clk 0:02:57]} 2. Nc3 {[%clk 0:03:01]}  d5 {[%clk 0:02:57]} 3. Nf3 {[%clk 0:03:00]}  Bg4 {[%clk 0:02:57]} 4. h3 {[%clk 0:03:00]}  Bxf3 {[%clk 0:02:57]} 5. Qxf3 {[%clk 0:03:01]}  Nf6 {[%clk 0:02:57]} 6. g3 {[%clk 0:03:00]}  e6 {[%clk 0:02:57]} 7. Bg2 {[%clk 0:03:00]}  Bb4 {[%clk 0:02:58]} 8. O-O {[%clk 0:02:59]}  O-O {[%clk 0:02:55]} 9. exd5 {[%clk 0:02:56]}  cxd5 {[%clk 0:02:53]} 10. Ne2 {[%clk 0:02:56]}  Nc6 {[%clk 0:02:52]} 11. d4 {[%clk 0:02:56]}  Rc8 {[%clk 0:02:49]} 12. c3 {[%clk 0:02:56]}  Be7 {[%clk 0:02:49]} 13. Nf4 {[%clk 0:02:56]}  b5 {[%clk 0:02:48]} 14. a3 {[%clk 0:02:54]}  a5 {[%clk 0:02:49]} 15. b4 {[%clk 0:02:53]}  axb4 {[%clk 0:02:42]} 16. axb4 {[%clk 0:02:54]}  Ne4 {[%clk 0:02:42]} 17. Rd1 {[%clk 0:02:48]}  Bd6 {[%clk 0:02:29]} 18. Bf1 {[%clk 0:02:40]}  Qb6 {[%clk 0:02:25]} 19. Nh5 {[%clk 0:02:35]}  f5 {[%clk 0:02:23]} 20. Bd2 {[%clk 0:02:18]}  Ra8 {[%clk 0:02:19]} 21. Qd3 {[%clk 0:02:13]}  g6 {[%clk 0:02:03]} 22. Nf4 {[%clk 0:02:11]}  Nxd2 {[%clk 0:02:02]} 23. Qxd2 {[%clk 0:02:11]}  Bxf4 {[%clk 0:01:49]} 24. Qxf4 {[%clk 0:02:12]}  Rfc8 {[%clk 0:01:43]} 25. Qd6 {[%clk 0:02:07]}  Rxa1 {[%clk 0:01:38]} 26. Qxe6+ {[%clk 0:02:06]}  Kg7 {[%clk 0:01:38]} 27. Rxa1 {[%clk 0:02:02]}  Rc7 {[%clk 0:01:35]} 28. Ra8 {[%clk 0:01:56]}  Ne7 {[%clk 0:01:33]} 29. Qxb6 {[%clk 0:01:55]} 1-0


[Site "https://www.chess.com"]

[Event "Titled Tuesday Blitz May 17 Early 2022"]
[White "Paravyan, David"]
[Black "Neiksans, Arturs"]
[WhiteFideId "4194985"]
[BlackFideId "11601388"]
[WhiteElo "2569"]
[BlackElo "2447"]
[Result "1/2-1/2"]
[Round "11"]
[TimeControl "180+1"]
[Date "2022.05.17"]
[WhiteClock "0:00:05"]
[BlackClock "0:00:06"]

1. e4 {[%clk 0:03:00]}  c5 {[%clk 0:03:00]} 2. Nf3 {[%clk 0:03:00]}  e6 {[%clk 0:03:00]} 3. d4 {[%clk 0:03:01]}  cxd4 {[%clk 0:03:01]} 4. Nxd4 {[%clk 0:03:02]}  a6 {[%clk 0:03:01]} 5. Nc3 {[%clk 0:03:03]}  b5 {[%clk 0:03:02]} 6. Bd3 {[%clk 0:03:03]}  Bb7 {[%clk 0:03:03]} 7. O-O {[%clk 0:03:03]}  Nc6 {[%clk 0:03:03]} 8. Nxc6 {[%clk 0:03:03]}  Bxc6 {[%clk 0:03:04]} 9. Re1 {[%clk 0:03:04]}  Qb8 {[%clk 0:03:04]} 10. a4 {[%clk 0:03:00]}  bxa4 {[%clk 0:03:03]} 11. Nxa4 {[%clk 0:02:59]}  Bd6 {[%clk 0:03:02]} 12. h3 {[%clk 0:02:48]}  Ne7 {[%clk 0:02:52]} 13. Be3 {[%clk 0:02:44]}  Bh2+ {[%clk 0:02:36]} 14. Kh1 {[%clk 0:02:44]}  Bf4 {[%clk 0:02:36]} 15. Qf3 {[%clk 0:02:37]}  Bxe3 {[%clk 0:02:25]} 16. Qxe3 {[%clk 0:02:38]}  Bxa4 {[%clk 0:02:23]} 17. Rxa4 {[%clk 0:02:39]}  Qxb2 {[%clk 0:02:23]} 18. e5 {[%clk 0:02:39]}  Ng6 {[%clk 0:01:59]} 19. h4 {[%clk 0:02:38]}  O-O {[%clk 0:01:40]} 20. h5 {[%clk 0:02:37]}  Ne7 {[%clk 0:01:40]} 21. Rg4 {[%clk 0:02:30]}  f5 {[%clk 0:01:32]} 22. exf6 {[%clk 0:02:07]}  Qxf6 {[%clk 0:01:31]} 23. h6 {[%clk 0:02:08]}  g6 {[%clk 0:01:24]} 24. Kg1 {[%clk 0:02:08]}  Nf5 {[%clk 0:01:22]} 25. Bxf5 {[%clk 0:02:00]}  Qxf5 {[%clk 0:01:21]} 26. Rd4 {[%clk 0:02:00]}  Rf7 {[%clk 0:01:18]} 27. Red1 {[%clk 0:01:56]}  d5 {[%clk 0:01:12]} 28. c4 {[%clk 0:01:56]}  Raf8 {[%clk 0:01:07]} 29. cxd5 {[%clk 0:01:47]}  exd5 {[%clk 0:01:07]} 30. f3 {[%clk 0:01:44]}  Rd7 {[%clk 0:01:04]} 31. Qc3 {[%clk 0:01:34]}  Qf6 {[%clk 0:01:02]} 32. Qb3 {[%clk 0:01:31]}  Qf7 {[%clk 0:00:40]} 33. Rxd5 {[%clk 0:01:29]}  Rxd5 {[%clk 0:00:40]} 34. Rxd5 {[%clk 0:01:28]}  a5 {[%clk 0:00:35]} 35. Qb2 {[%clk 0:01:13]}  Ra8 {[%clk 0:00:32]} 36. Qd4 {[%clk 0:01:11]}  Rf8 {[%clk 0:00:20]} 37. Rxa5 {[%clk 0:00:50]}  Qf6 {[%clk 0:00:21]} 38. Qd7 {[%clk 0:00:36]}  g5 {[%clk 0:00:18]} 39. Qd5+ {[%clk 0:00:30]}  Kh8 {[%clk 0:00:14]} 40. Qxg5 {[%clk 0:00:30]}  Qxg5 {[%clk 0:00:12]} 41. Rxg5 {[%clk 0:00:31]}  Rf6 {[%clk 0:00:13]} 42. Rh5 {[%clk 0:00:31]}  Kg8 {[%clk 0:00:14]} 43. Kf2 {[%clk 0:00:27]}  Kf7 {[%clk 0:00:14]} 44. g4 {[%clk 0:00:26]}  Kg6 {[%clk 0:00:13]} 45. Kg3 {[%clk 0:00:26]}  Ra6 {[%clk 0:00:12]} 46. f4 {[%clk 0:00:26]}  Ra3+ {[%clk 0:00:11]} 47. Kh4 {[%clk 0:00:18]}  Ra1 {[%clk 0:00:11]} 48. f5+ {[%clk 0:00:17]}  Kf6 {[%clk 0:00:11]} 49. Kg3 {[%clk 0:00:10]}  Ra3+ {[%clk 0:00:10]} 50. Kf2 {[%clk 0:00:10]}  Ra4 {[%clk 0:00:09]} 51. Rh4 {[%clk 0:00:05]}  Kg5 {[%clk 0:00:09]} 52. Rh3 {[%clk 0:00:02]}  Kxg4 {[%clk 0:00:06]} 53. Rc3 {[%clk 0:00:01]}  Kxf5 {[%clk 0:00:05]} 54. Rc6 {[%clk 0:00:02]}  Kg5 {[%clk 0:00:05]} 55. Kg3 {[%clk 0:00:02]}  Ra3+ {[%clk 0:00:06]} 56. Kg2 {[%clk 0:00:02]}  Kg4 {[%clk 0:00:05]} 57. Rc7 {[%clk 0:00:02]}  Ra2+ {[%clk 0:00:05]} 58. Kg1 {[%clk 0:00:03]}  Kg5 {[%clk 0:00:04]} 59. Rxh7 {[%clk 0:00:03]}  Kg6 {[%clk 0:00:05]} 60. Rh8 {[%clk 0:00:03]}  Ra7 {[%clk 0:00:04]} 61. Kg2 {[%clk 0:00:03]}  Rh7 {[%clk 0:00:04]} 62. Rxh7 {[%clk 0:00:04]}  Kxh7 {[%clk 0:00:05]} 63. Kg3 {[%clk 0:00:05]}  Kxh6 {[%clk 0:00:06]} 1/2-1/2


[Site "https://www.chess.com"]

[Event "Titled Tuesday Blitz May 17 Early 2022"]
[White "Pesotskiy, Mikhail"]
[Black "FGHSMN"]
[WhiteFideId "34164453"]
[WhiteElo "2010"]
[BlackElo "2751"]
[Result "0-1"]
[Round "11"]
[TimeControl "180+1"]
[Date "2022.05.17"]
[WhiteClock "0:00:02"]
[BlackClock "0:00:48"]

1. d4 {[%clk 0:02:59]}  Nf6 {[%clk 0:02:59]} 2. c4 {[%clk 0:02:58]}  e6 {[%clk 0:02:59]} 3. Nc3 {[%clk 0:02:59]}  c5 {[%clk 0:02:59]} 4. d5 {[%clk 0:02:58]}  exd5 {[%clk 0:02:59]} 5. cxd5 {[%clk 0:02:59]}  d6 {[%clk 0:02:59]} 6. e4 {[%clk 0:03:00]}  g6 {[%clk 0:02:59]} 7. Bd3 {[%clk 0:02:59]}  Bg7 {[%clk 0:03:00]} 8. h3 {[%clk 0:03:00]}  O-O {[%clk 0:02:59]} 9. Nf3 {[%clk 0:03:00]}  a6 {[%clk 0:03:00]} 10. a4 {[%clk 0:03:00]}  Nbd7 {[%clk 0:03:00]} 11. O-O {[%clk 0:02:58]}  Re8 {[%clk 0:03:01]} 12. Re1 {[%clk 0:02:57]}  Ne5 {[%clk 0:02:59]} 13. Nxe5 {[%clk 0:02:50]}  Rxe5 {[%clk 0:03:00]} 14. Bf4 {[%clk 0:02:49]}  Nh5 {[%clk 0:03:00]} 15. Bxe5 {[%clk 0:02:49]}  Bxe5 {[%clk 0:03:01]} 16. Bf1 {[%clk 0:02:36]}  Qg5 {[%clk 0:02:53]} 17. Qf3 {[%clk 0:02:34]}  Nf4 {[%clk 0:02:51]} 18. Kh1 {[%clk 0:02:32]}  h5 {[%clk 0:02:35]} 19. Ne2 {[%clk 0:02:23]}  Bg4 {[%clk 0:02:31]} 20. Qe3 {[%clk 0:01:48]}  Bxe2 {[%clk 0:02:22]} 21. Rxe2 {[%clk 0:01:45]}  Bd4 {[%clk 0:02:05]} 22. Qd2 {[%clk 0:01:26]}  Qe5 {[%clk 0:01:42]} 23. Ree1 {[%clk 0:01:24]}  Bxb2 {[%clk 0:01:41]} 24. g3 {[%clk 0:01:05]}  Bxa1 {[%clk 0:01:14]} 25. gxf4 {[%clk 0:01:03]}  Qc3 {[%clk 0:01:12]} 26. Qxc3 {[%clk 0:01:03]}  Bxc3 {[%clk 0:01:13]} 27. Rb1 {[%clk 0:01:02]}  Bb4 {[%clk 0:01:13]} 28. Kg2 {[%clk 0:00:48]}  Kf8 {[%clk 0:01:11]} 29. Kf3 {[%clk 0:00:39]}  Re8 {[%clk 0:01:10]} 30. h4 {[%clk 0:00:29]}  Ke7 {[%clk 0:01:09]} 31. Bh3 {[%clk 0:00:29]}  b5 {[%clk 0:01:03]} 32. Bf1 {[%clk 0:00:25]}  Rb8 {[%clk 0:01:02]} 33. axb5 {[%clk 0:00:16]}  axb5 {[%clk 0:01:03]} 34. e5 {[%clk 0:00:17]}  dxe5 {[%clk 0:00:55]} 35. fxe5 {[%clk 0:00:18]}  Bc3 {[%clk 0:00:55]} 36. Rxb5 {[%clk 0:00:17]}  Rxb5 {[%clk 0:00:54]} 37. Bxb5 {[%clk 0:00:17]}  Bxe5 {[%clk 0:00:55]} 38. Bc4 {[%clk 0:00:15]}  Kd6 {[%clk 0:00:55]} 39. Kg2 {[%clk 0:00:07]}  Bf6 {[%clk 0:00:55]} 40. Kg3 {[%clk 0:00:08]}  Be7 {[%clk 0:00:55]} 41. f4 {[%clk 0:00:07]}  f6 {[%clk 0:00:49]} 42. Bd3 {[%clk 0:00:04]}  g5 {[%clk 0:00:47]} 43. fxg5 {[%clk 0:00:03]}  fxg5 {[%clk 0:00:48]} 44. hxg5 {[%clk 0:00:02]}  Bxg5 {[%clk 0:00:49]} 45. Bc4 {[%clk 0:00:02]}  Ke5 {[%clk 0:00:48]} 0-1


[Site "https://www.chess.com"]

[Event "Titled Tuesday Blitz May 17 Early 2022"]
[White "Petrovskyi, Vadym"]
[Black "Sargsyan, Anna M."]
[WhiteFideId "14165210"]
[BlackFideId "13308130"]
[WhiteElo "2400"]
[BlackElo "2271"]
[Result "1-0"]
[Round "11"]
[TimeControl "180+1"]
[Date "2022.05.17"]
[WhiteClock "0:01:29"]
[BlackClock "0:00:13"]

1. e4 {[%clk 0:03:00]}  e5 {[%clk 0:02:57]} 2. Nf3 {[%clk 0:03:01]}  Nc6 {[%clk 0:02:58]} 3. d4 {[%clk 0:03:01]}  exd4 {[%clk 0:02:57]} 4. Bc4 {[%clk 0:03:00]}  Nf6 {[%clk 0:02:52]} 5. e5 {[%clk 0:03:00]}  d5 {[%clk 0:02:51]} 6. Bb5 {[%clk 0:03:01]}  Ne4 {[%clk 0:02:48]} 7. Nxd4 {[%clk 0:03:01]}  Bd7 {[%clk 0:02:24]} 8. Bxc6 {[%clk 0:03:00]}  bxc6 {[%clk 0:02:24]} 9. O-O {[%clk 0:03:00]}  Be7 {[%clk 0:02:23]} 10. f3 {[%clk 0:02:59]}  Nc5 {[%clk 0:02:22]} 11. f4 {[%clk 0:02:57]}  Ne6 {[%clk 0:02:02]} 12. c3 {[%clk 0:02:50]}  c5 {[%clk 0:01:54]} 13. Nf5 {[%clk 0:02:48]}  Bb5 {[%clk 0:01:34]} 14. Rf2 {[%clk 0:02:45]}  Bf8 {[%clk 0:01:22]} 15. Ng3 {[%clk 0:02:41]}  c4 {[%clk 0:01:17]} 16. f5 {[%clk 0:02:39]}  Nc5 {[%clk 0:01:17]} 17. Na3 {[%clk 0:02:33]}  Bc6 {[%clk 0:01:14]} 18. Qh5 {[%clk 0:02:27]}  Nd3 {[%clk 0:01:04]} 19. e6 {[%clk 0:02:22]}  Qe7 {[%clk 0:00:42]} 20. Bg5 {[%clk 0:02:21]}  g6 {[%clk 0:00:42]} 21. exf7+ {[%clk 0:02:21]}  Qxf7 {[%clk 0:00:30]} 22. Re2+ {[%clk 0:02:05]}  Kd7 {[%clk 0:00:28]} 23. fxg6 {[%clk 0:02:06]}  hxg6 {[%clk 0:00:27]} 24. Qg4+ {[%clk 0:02:03]}  Kd6 {[%clk 0:00:20]} 25. Rf1 {[%clk 0:01:58]}  Bd7 {[%clk 0:00:16]} 26. Qd4 {[%clk 0:01:36]}  Qh7 {[%clk 0:00:13]} 27. Rf6+ {[%clk 0:01:32]}  Be6 {[%clk 0:00:13]} 28. Rfxe6+ {[%clk 0:01:30]}  Kd7 {[%clk 0:00:13]} 29. Qxd5+ {[%clk 0:01:29]}  Bd6 {[%clk 0:00:13]} 30. Re7+ {[%clk 0:01:29]} 1-0


[Site "https://www.chess.com"]

[Event "Titled Tuesday Blitz May 17 Early 2022"]
[White "Pinheiro, Iung Alicio de O."]
[Black "Dronavalli, Harika"]
[WhiteFideId "2104350"]
[BlackFideId "5015197"]
[WhiteElo "2283"]
[BlackElo "2382"]
[Result "0-1"]
[Round "11"]
[TimeControl "180+1"]
[Date "2022.05.17"]
[WhiteClock "0:00:16"]
[BlackClock "0:00:55"]

1. c4 {[%clk 0:03:00]}  Nf6 {[%clk 0:02:56]} 2. g3 {[%clk 0:02:59]}  g6 {[%clk 0:02:55]} 3. Bg2 {[%clk 0:02:58]}  Bg7 {[%clk 0:02:55]} 4. Nc3 {[%clk 0:02:59]}  O-O {[%clk 0:02:55]} 5. d3 {[%clk 0:02:59]}  d6 {[%clk 0:02:54]} 6. e4 {[%clk 0:02:58]}  c5 {[%clk 0:02:51]} 7. Nge2 {[%clk 0:02:50]}  Nc6 {[%clk 0:02:51]} 8. O-O {[%clk 0:02:49]}  Rb8 {[%clk 0:02:50]} 9. Rb1 {[%clk 0:02:46]}  Ne8 {[%clk 0:02:43]} 10. Be3 {[%clk 0:02:41]}  Nd4 {[%clk 0:02:43]} 11. b4 {[%clk 0:02:38]}  Nc7 {[%clk 0:02:38]} 12. Qd2 {[%clk 0:02:29]}  b6 {[%clk 0:02:34]} 13. Bh6 {[%clk 0:02:27]}  e5 {[%clk 0:02:27]} 14. Nxd4 {[%clk 0:02:19]}  cxd4 {[%clk 0:02:27]} 15. Nd5 {[%clk 0:01:53]}  Nxd5 {[%clk 0:02:26]} 16. cxd5 {[%clk 0:01:50]}  Bd7 {[%clk 0:02:18]} 17. Bxg7 {[%clk 0:01:38]}  Kxg7 {[%clk 0:02:19]} 18. b5 {[%clk 0:01:19]}  Rc8 {[%clk 0:02:18]} 19. Rfc1 {[%clk 0:01:18]}  Rxc1+ {[%clk 0:02:02]} 20. Qxc1 {[%clk 0:01:11]}  Qb8 {[%clk 0:01:50]} 21. h4 {[%clk 0:00:54]}  Rc8 {[%clk 0:01:50]} 22. Qd2 {[%clk 0:00:54]}  Rc3 {[%clk 0:01:49]} 23. h5 {[%clk 0:00:54]}  f6 {[%clk 0:01:48]} 24. f4 {[%clk 0:00:36]}  Qc7 {[%clk 0:01:46]} 25. fxe5 {[%clk 0:00:37]}  dxe5 {[%clk 0:01:47]} 26. h6+ {[%clk 0:00:36]}  Kf7 {[%clk 0:01:46]} 27. Rf1 {[%clk 0:00:34]}  Rc2 {[%clk 0:01:32]} 28. Qd1 {[%clk 0:00:33]}  Qc3 {[%clk 0:01:23]} 29. Qf3 {[%clk 0:00:31]}  f5 {[%clk 0:01:15]} 30. exf5 {[%clk 0:00:19]}  gxf5 {[%clk 0:01:05]} 31. Qh5+ {[%clk 0:00:19]}  Ke7 {[%clk 0:01:05]} 32. Qg5+ {[%clk 0:00:19]}  Kd6 {[%clk 0:01:02]} 33. Qf6+ {[%clk 0:00:16]}  Kc7 {[%clk 0:01:01]} 34. Qxe5+ {[%clk 0:00:16]}  Kc8 {[%clk 0:00:59]} 35. Qh8+ {[%clk 0:00:16]}  Kc7 {[%clk 0:00:59]} 36. d6+ {[%clk 0:00:16]}  Kxd6 {[%clk 0:00:58]} 37. Qxh7 {[%clk 0:00:16]}  Qd2 {[%clk 0:00:54]} 38. Qg6+ {[%clk 0:00:16]}  Be6 {[%clk 0:00:55]} 0-1


[Site "https://www.chess.com"]

[Event "Titled Tuesday Blitz May 17 Early 2022"]
[White "Rustemov, Alexander"]
[Black "Ciorgovean, Iustin"]
[WhiteFideId "4119002"]
[BlackFideId "1242911"]
[WhiteElo "2792"]
[BlackElo "2075"]
[Result "0-1"]
[Round "11"]
[TimeControl "180+1"]
[Date "2022.05.17"]
[WhiteClock "0:00:04"]
[BlackClock "0:00:17"]

1. d4 {[%clk 0:03:00]}  Nf6 {[%clk 0:02:57]} 2. c4 {[%clk 0:03:00]}  c5 {[%clk 0:02:57]} 3. d5 {[%clk 0:02:55]}  b5 {[%clk 0:02:57]} 4. cxb5 {[%clk 0:02:56]}  a6 {[%clk 0:02:58]} 5. e3 {[%clk 0:02:56]}  axb5 {[%clk 0:02:41]} 6. Bxb5 {[%clk 0:02:57]}  Ba6 {[%clk 0:02:29]} 7. Bxa6 {[%clk 0:02:53]}  Nxa6 {[%clk 0:02:30]} 8. Nc3 {[%clk 0:02:53]}  g6 {[%clk 0:02:28]} 9. Nf3 {[%clk 0:02:53]}  Bg7 {[%clk 0:02:28]} 10. O-O {[%clk 0:02:53]}  O-O {[%clk 0:02:29]} 11. e4 {[%clk 0:02:54]}  d6 {[%clk 0:02:29]} 12. h3 {[%clk 0:02:51]}  Qb6 {[%clk 0:02:28]} 13. Re1 {[%clk 0:02:50]}  Nd7 {[%clk 0:02:20]} 14. Qe2 {[%clk 0:02:37]}  Rfb8 {[%clk 0:02:10]} 15. a4 {[%clk 0:02:20]}  Nc7 {[%clk 0:02:08]} 16. Ra3 {[%clk 0:02:14]}  Qb4 {[%clk 0:01:53]} 17. Nd2 {[%clk 0:02:03]}  Bxc3 {[%clk 0:01:47]} 18. bxc3 {[%clk 0:01:59]}  Qb7 {[%clk 0:01:34]} 19. Nc4 {[%clk 0:01:50]}  Qa6 {[%clk 0:01:15]} 20. a5 {[%clk 0:01:46]}  f6 {[%clk 0:01:06]} 21. f4 {[%clk 0:01:43]}  Qb5 {[%clk 0:01:05]} 22. Bd2 {[%clk 0:01:32]}  Qa6 {[%clk 0:00:36]} 23. Kh2 {[%clk 0:01:29]}  Rf8 {[%clk 0:00:34]} 24. Rb3 {[%clk 0:01:27]}  f5 {[%clk 0:00:20]} 25. exf5 {[%clk 0:01:23]}  Rxf5 {[%clk 0:00:21]} 26. Qxe7 {[%clk 0:01:22]}  Qxc4 {[%clk 0:00:21]} 27. Rb7 {[%clk 0:01:13]}  Rf7 {[%clk 0:00:21]} 28. Qxd6 {[%clk 0:01:09]}  Ne8 {[%clk 0:00:20]} 29. Qc6 {[%clk 0:00:51]}  Nef6 {[%clk 0:00:17]} 30. Rxd7 {[%clk 0:00:47]}  Raf8 {[%clk 0:00:17]} 31. Rxf7 {[%clk 0:00:40]}  Rxf7 {[%clk 0:00:17]} 32. d6 {[%clk 0:00:33]}  Qd3 {[%clk 0:00:17]} 33. Bc1 {[%clk 0:00:21]}  Nh5 {[%clk 0:00:17]} 34. Qe4 {[%clk 0:00:16]}  Qxd6 {[%clk 0:00:16]} 35. Qe5 {[%clk 0:00:13]}  Qd3 {[%clk 0:00:14]} 36. Qe8+ {[%clk 0:00:12]}  Kg7 {[%clk 0:00:14]} 37. Qe5+ {[%clk 0:00:12]}  Kg8 {[%clk 0:00:14]} 38. Qxc5 {[%clk 0:00:12]}  Qg3+ {[%clk 0:00:14]} 39. Kg1 {[%clk 0:00:09]}  Qxe1+ {[%clk 0:00:14]} 40. Kh2 {[%clk 0:00:09]}  Qxc1 {[%clk 0:00:15]} 41. Qc8+ {[%clk 0:00:09]}  Kg7 {[%clk 0:00:15]} 42. a6 {[%clk 0:00:05]}  Qxf4+ {[%clk 0:00:15]} 43. Kg1 {[%clk 0:00:04]}  Qe3+ {[%clk 0:00:15]} 44. Kh2 {[%clk 0:00:05]}  Qe5+ {[%clk 0:00:16]} 45. Kg1 {[%clk 0:00:05]}  Ng3 {[%clk 0:00:16]} 46. a7 {[%clk 0:00:03]}  Rf1+ {[%clk 0:00:16]} 47. Kh2 {[%clk 0:00:04]}  Rh1# {[%clk 0:00:17]} 0-1


[Site "https://www.chess.com"]